fUSD/lending_fUSD_20260213
["ID","MTS","AMOUNT","RATE_DAILY","PERIOD"]
[405303805,1770971450324,-2000.0,0.00021917,2]
[405303806,1770971450334,-151.0,0.00021918,2]
[405303807,1770971450343,-248.464248,0.00021918,2]
[405303808,1770971450352,-552.06741177,0.00021918,2]
[405303809,1770971450365,-500.0,0.00021918,2]
[405303810,1770971450374,-204.72,0.00021959,2]
[405303811,1770971450384,-500.0,0.00021973,2]
[405303812,1770971450394,-500.0,0.00021999,2]
[405303813,1770971450404,-300.0,0.00021999,2]
[405303814,1770971450413,-2421.331562,0.00022,2]
[405303815,1770971450423,-1048.59,0.00022,7]
[405303816,1770971450433,-391.60987072,0.00022,2]
[405303817,1770971450443,-41943.48,0.00022,2]
[405303818,1770971450453,-500.0,0.00022028,2]
[405303819,1770971450463,-500.0,0.00022082,2]
[405303820,1770971450473,-500.0,0.00022137,2]
[405303821,1770971450483,-500.0,0.00022192,2]
[405303822,1770971450493,-500.0,0.00022247,2]
[405303823,1770971450502,-500.0,0.00022302,2]
[405303824,1770971450512,-390.83009148,0.00022356,2]
[405303825,1770971450522,-11030.56,0.00022466,2]
[405303826,1770971450531,-160.10510946,0.00022562,2]
[405303827,1770971450541,-458.92,0.000228,14]
[405303828,1770971450551,-591.31,0.00022884,2]
[405303829,1770971450561,-591.31,0.00022884,2]
[405303830,1770971450571,-591.31,0.00022884,2]
[405303831,1770971450581,-591.31,0.00022884,2]
[405303832,1770971450590,-591.40700258,0.00022884,2]
[405303833,1770971450600,-1197.3,0.00022884,2]
[405303834,1770971450610,-1197.3,0.00022884,2]
[405303835,1770971450620,-1197.3,0.00022884,2]
[405303836,1770971450630,-1197.3,0.00022884,2]
[405303837,1770971450640,-1197.32571045,0.00022884,2]
[405303838,1770971450649,-1410.82,0.00022884,2]
[405303839,1770971450659,-1410.82,0.00022884,2]
[405303840,1770971450669,-1410.82,0.00022884,2]
[405303841,1770971450679,-1410.82,0.00022884,2]
[405303842,1770971450688,-1411.00509654,0.00022884,2]
[405303843,1770971450698,-615.27,0.00022884,2]
[405303844,1770971450708,-615.27,0.00022884,2]
[405303845,1770971450718,-615.27,0.00022884,2]
[405303846,1770971450728,-615.27,0.00022884,2]
[405303847,1770971450737,-615.33754888,0.00022884,2]
[405303848,1770971450747,-500.0,0.00022884,2]
[405303849,1770971450756,-500.0,0.00022884,2]
[405303850,1770971450766,-495.54112114,0.00022884,2]
[405303851,1770971450776,-317.97612669,0.00022999,2]
[405303852,1770971450786,-2310.39780046,0.00023,2]
[405303853,1770971450795,-160.0,0.00023,2]
[405303854,1770971450806,-41943.48,0.00023,2]
[405303855,1770971450816,-214.56,0.00023409,2]
[405303856,1770971450825,-1274.0,0.00023494,2]
[405303857,1770971450835,-1208.0,0.00023494,2]
[405303858,1770971450848,-918.0,0.00023494,2]
[405303859,1770971450858,-1337.0,0.00023494,2]
[405303860,1770971450868,-9925.0,0.00023568,2]
[405303861,1770971450877,-503.0,0.00023692,6]
[405303862,1770971450886,-214.56,0.00024516,2]
[405303863,1770971450896,-160.10510947,0.00024614,2]
[405303864,1770971450906,-2000.0,0.00024657,12]
[405303865,1770971450915,-1000.0,0.00024658,2]
[405303866,1770971450924,-1254.26,0.00024658,2]
[405303867,1770971450934,-150.0,0.00024658,2]
[405303868,1770971450943,-1000.0,0.00024999,2]
[405303869,1770971450952,-150.0,0.00025,17]
[405303870,1770971450962,-302.0,0.000252,2]
[405303871,1770971450972,-308.0,0.000252,2]
[405303872,1770971450982,-214.56,0.00025623,2]
[405303873,1770971450991,-150.0,0.0002589,2]
[405303874,1770971451000,-41943.48,0.000259,2]
[405303875,1770971451009,-150.0,0.00026,20]
[405303876,1770971451019,-503.0,0.00026038,8]
[405303877,1770971451028,-1274.0,0.00026494,2]
[405303878,1770971451037,-1208.0,0.00026494,2]
[405303879,1770971451046,-918.0,0.00026494,2]
[405303880,1770971451056,-1337.0,0.00026494,2]
[405303881,1770971451065,-256.0,0.00027,23]
[405303882,1770971451075,-150.0,0.00027185,2]
[405303883,1770971451084,-150.0,0.00027369,2]
[405303884,1770971451093,-419.210602,0.0002737,2]
[405303885,1770971451103,-2006.79775427,0.00027397,22]
[405303886,1770971451112,-160.48734455,0.00027397,2]
[405303887,1770971451122,-500.0,0.00027397,120]
[405303888,1770971451132,-151.0,0.00027397,2]
[405303889,1770971451141,-151.0,0.00027397,2]
[405303890,1770971451150,-151.0,0.00027397,2]
[405303891,1770971451159,-151.0,0.00027397,2]
[405303892,1770971451170,-1254.26,0.00027397,2]
[405303893,1770971451180,-364.466906,0.00027397,2]
[405303894,1770971451189,-364.466906,0.00027397,2]
[405303895,1770971451199,-364.466906,0.00027397,2]
[405303896,1770971451208,-364.466906,0.00027397,2]
[405303897,1770971451218,-364.466906,0.00027397,2]
[405303898,1770971451228,-364.466906,0.00027397,2]
[405303899,1770971451237,-364.466906,0.00027397,2]
[405303900,1770971451404,-364.466906,0.00027397,2]
[405303901,1770971451418,-364.466906,0.00027397,2]
[405303902,1770971451428,-364.466906,0.00027397,2]
[405303903,1770971451438,-364.466906,0.00027397,2]
[405303904,1770971451448,-364.466906,0.00027397,2]
[405303905,1770971451457,-300.0,0.00027397,5]
[405303906,1770971451467,-150.0,0.00027397,5]
[405303907,1770971451476,-211.64486085,0.00027397,4]
[405303908,1770971451486,-472.90898588,0.00027595,3]
[405303909,1770971451495,-433.62513448,0.00027663,2]
[405303910,1770971451504,-600.0,0.00027945,5]
[405303911,1770971451514,-250.0,0.00027945,5]
[405303912,1770971451524,-41943.48,0.00028,2]
[405303913,1770971451534,-1087.42936172,0.00028182,3]
[405303914,1770971451543,-250.0,0.00028193,15]
[405303915,1770971451552,-251.0,0.00028193,15]
[405303916,1770971451562,-250.0,0.00028275,15]
[405303917,1770971451571,-201.0,0.00028275,15]
[405303918,1770971451580,-600.499113,0.00028353,120]
[405303919,1770971451590,-300.0,0.00028357,15]
[405303920,1770971451600,-503.0,0.00028385,10]
[405303921,1770971451610,-1011.01782723,0.00028493,5]
[405303922,1770971451619,-353.14332951,0.00028493,5]
[405303923,1770971451629,-150.0,0.00028544,2]
[405303924,1770971451638,-382.43,0.000286,14]
[405303925,1770971451648,-2720.78835053,0.00029,120]
[405303926,1770971451658,-758.67575616,0.00029,2]
[405303927,1770971451667,-1274.0,0.00029494,2]
[405303928,1770971451677,-1208.0,0.00029494,2]
[405303929,1770971451687,-918.0,0.00029494,2]
[405303930,1770971451696,-1337.0,0.00029494,2]
[405303931,1770971451706,-150.0,0.00029971,2]
[405303932,1770971451715,-150.0,0.0003,2]
[405303933,1770971451725,-888.00911856,0.0003,3]
[405303934,1770971451734,-1045.18350317,0.0003,60]
[405303935,1770971451743,-177.81953257,0.0003,120]
[405303936,1770971451753,-2571.54846146,0.0003,120]
[405303937,1770971451762,-152.64,0.0003,2]
[405303938,1770971451772,-152.64,0.0003,2]
[405303939,1770971451782,-152.64,0.0003,2]
[405303940,1770971451792,-152.64,0.0003,2]
[405303941,1770971451801,-152.64,0.0003,2]
[405303942,1770971451811,-152.64,0.0003,2]
[405303943,1770971451821,-152.64,0.0003,2]
[405303944,1770971451831,-152.64,0.0003,2]
[405303945,1770971451841,-152.64,0.0003,2]
[405303946,1770971451850,-152.64,0.0003,2]
[405303947,1770971451860,-152.64,0.0003,2]
[405303948,1770971451870,-152.64,0.0003,2]
[405303949,1770971451879,-152.64,0.0003,2]
[405303950,1770971451889,-152.64,0.0003,2]
[405303951,1770971451899,-152.64,0.0003,2]
[405303952,1770971451908,-662.51665377,0.0003013,2]
[405303953,1770971451917,-500.0,0.00030137,120]
[405303954,1770971451927,-1254.26,0.00030137,2]
[405303955,1770971451937,-151.66407962,0.000302,30]
[405303956,1770971451946,-1000.0,0.00030462,7]
[405303957,1770971451955,-152.0,0.00030605,3]
[405303958,1770971451965,-503.0,0.00030731,13]
[405303959,1770971451975,-1000.0,0.00030736,7]
[405303960,1770971451984,-9787.97513504,0.00031,2]
[405303961,1770971451993,-687.60412038,0.00031,120]
[405303962,1770971452002,-1000.0,0.0003101,7]
[405303963,1770971452012,-500.0,0.00031151,2]
[405303964,1770971452020,-3354.50490408,0.00031173,2]
[405303965,1770971452030,-152.0,0.00031228,4]
[405303966,1770971452039,-1000.0,0.00031284,7]
[405303967,1770971452049,-150.0,0.0003147,2]
[405303968,1770971452058,-152.0,0.00031851,5]
[405303969,1770971452068,-180.11038915,0.00031936,8]
[405303970,1770971452078,-218.1079589,0.00032,7]
[405303971,1770971452087,-541.304925,0.00032099,10]
[405303972,1770971452096,-1048.59,0.000321,7]
[405303973,1770971452105,-42929.0,0.000322,2]
[405303974,1770971452115,-152.0,0.00032475,6]
[405303975,1770971452124,-918.0,0.00032494,2]
[405303976,1770971452133,-1337.0,0.00032494,2]
[405303977,1770971452143,-1000.0,0.00032593,7]
[405303978,1770971452152,-5531.0,0.000327,3]
[405303979,1770971452161,-1215.687,0.00032804,33]
[405303980,1770971452171,-419.210602,0.00032849,30]
[405303981,1770971452180,-516.95013076,0.00032876,30]
[405303982,1770971452190,-186.66700713,0.00032876,2]
[405303983,1770971452199,-500.0,0.00032876,2]
[405303984,1770971452209,-500.0,0.00032876,2]
[405303985,1770971452218,-338.91783897,0.00032876,2]
[405303986,1770971452228,-500.0,0.00032876,2]
[405303987,1770971452238,-168.15019257,0.00032876,2]
[405303988,1770971452247,-500.0,0.00032876,2]
[405303989,1770971452257,-500.0,0.00032876,2]
[405303990,1770971452266,-600.0,0.00032876,2]
[405303991,1770971452276,-500.0,0.00032877,120]
[405303992,1770971452289,-1254.26,0.00032877,2]
[405303993,1770971452298,-300.0,0.00032877,5]
[405303994,1770971452308,-500.0,0.00032877,2]
[405303995,1770971452319,-500.0,0.00032877,2]
[405303996,1770971452329,-500.0,0.00032877,2]
[405303997,1770971452339,-500.0,0.00032877,2]
[405303998,1770971452348,-500.0,0.00032877,2]
[405303999,1770971452359,-365.85048482,0.00032877,2]
[405304000,1770971452368,-1070.01,0.000329,2]
[405304001,1770971452377,-1572.86,0.000329,14]
[405304002,1770971452386,-542.595972,0.00033,8]
[405304003,1770971452396,-537.20222059,0.00033,120]
[405304004,1770971452405,-41943.48,0.00033,2]
[405304005,1770971452415,-589.5,0.0003302,30]
[405304006,1770971452424,-728.0,0.0003302,30]
[405304007,1770971452434,-150.0,0.00033043,2]
[405304008,1770971452444,-503.0,0.00033077,15]
[405304009,1770971452453,-152.0,0.00033098,7]
[405304010,1770971452462,-639.29,0.000331,14]
[405304011,1770971452472,-337.84879333,0.00033131,120]
[405304012,1770971452482,-480.01587484,0.00033131,120]
[405304013,1770971452491,-5531.0,0.000333,5]
[405304014,1770971452500,-11030.56,0.00033699,2]
[405304015,1770971452510,-601.10661111,0.00033699,5]
[405304016,1770971452519,-152.0,0.00033722,8]
[405304017,1770971452529,-41943.49,0.000338,14]
[405304018,1770971452538,-1771.32142509,0.00034,120]
[405304019,1770971452548,-1000.0,0.00034302,2]
[405304020,1770971452559,-1000.0,0.00034302,2]
[405304021,1770971452569,-1000.0,0.00034302,2]
[405304022,1770971452579,-1000.0,0.00034302,2]
[405304023,1770971452588,-1000.0,0.00034302,2]
[405304024,1770971452598,-152.0,0.00034345,9]
[405304025,1770971452608,-253.57674732,0.000345,120]
[405304026,1770971452618,-150.0,0.00034696,2]
[405304027,1770971452628,-41943.49,0.000347,14]
[405304028,1770971452638,-41943.48,0.000347,2]
[405304029,1770971452647,-1500.0,0.00034795,2]
[405304030,1770971452656,-754.90580345,0.0003488,120]
[405304031,1770971452666,-152.0,0.00034968,10]
[405304032,1770971452676,-624.42112934,0.00035,90]
[405304033,1770971452685,-500.0,0.00035151,2]
[405304034,1770971452694,-503.0,0.00035423,17]
[405304035,1770971452704,-918.0,0.00035494,2]
[405304036,1770971452713,-1337.0,0.00035494,2]
[405304037,1770971452723,-179.04905926,0.00035589,120]
[405304038,1770971452732,-152.0,0.00035592,11]
[405304039,1770971452742,-1626.19259747,0.000356,120]
[405304040,1770971452752,-2332.61066288,0.0003561,120]
[405304041,1770971452761,-2430.25653445,0.0003561,120]
[405304042,1770971452770,-500.0,0.00035616,120]
[405304043,1770971452779,-2478.0,0.00035616,120]
[405304044,1770971452789,-2385.0,0.00035616,120]
[405304045,1770971452799,-2367.0,0.00035616,120]
[405304046,1770971452809,-1254.26,0.00035616,2]
[405304047,1770971452818,-1070.01,0.000357,2]
[405304048,1770971452827,-1572.86,0.000357,14]
[405304049,1770971452836,-2000.0,0.000359,2]
[405304050,1770971452846,-518.4,0.00036,30]
[405304051,1770971452855,-152.0,0.00036215,12]
[405304052,1770971452864,-150.0,0.0003643,2]
[405304053,1770971452873,-150.76,0.00036608,10]
[405304054,1770971452883,-518.4,0.0003672,30]
[405304055,1770971452892,-152.0,0.00036839,13]
[405304056,1770971452902,-163.263235,0.00036986,31]
[405304057,1770971452911,-177.091513,0.00036986,31]
[405304058,1770971452920,-161.615697,0.00036986,31]
[405304059,1770971452930,-158.441673,0.00036986,31]
[405304060,1770971452939,-158.441673,0.00036986,31]
[405304061,1770971452948,-151.0,0.00036986,31]
[405304062,1770971452958,-158.441673,0.00036986,31]
[405304063,1770971452967,-151.0,0.00036986,31]
[405304064,1770971452977,-158.441673,0.00036986,31]
[405304065,1770971452986,-151.0,0.00036986,31]
[405304066,1770971452995,-282.243673,0.00036986,31]
[405304067,1770971453004,-1064.550733,0.00036986,31]
[405304068,1770971453013,-1064.550733,0.00036986,31]
[405304069,1770971453023,-1064.550733,0.00036986,31]
[405304070,1770971453032,-1064.550733,0.00036986,31]
[405304071,1770971453042,-432.808993,0.00036986,31]
[405304072,1770971453052,-432.808993,0.00036986,31]
[405304073,1770971453062,-1064.550733,0.00036986,31]
[405304074,1770971453071,-1064.550733,0.00036986,31]
[405304075,1770971453081,-432.808993,0.00036986,31]
[405304076,1770971453091,-432.808993,0.00036986,31]
[405304077,1770971453100,-1064.550733,0.00036986,31]
[405304078,1770971453109,-1064.550733,0.00036986,31]
[405304079,1770971453119,-432.808993,0.00036986,31]
[405304080,1770971453129,-432.808993,0.00036986,31]
[405304081,1770971453138,-432.808993,0.00036986,31]
[405304082,1770971453148,-432.808993,0.00036986,31]
[405304083,1770971453158,-173.973553,0.00036986,31]
[405304084,1770971453168,-151.0,0.00036986,31]
[405304085,1770971453177,-151.0,0.00036986,31]
[405304086,1770971453187,-162.873119,0.00036986,31]
[405304087,1770971453197,-151.0,0.00036986,31]
[405304088,1770971453207,-151.0,0.00036986,31]
[405304089,1770971453217,-162.758638,0.00036986,31]
[405304090,1770971453226,-151.0,0.00036986,31]
[405304091,1770971453235,-151.0,0.00036986,31]
[405304092,1770971453245,-151.0,0.00036986,31]
[405304093,1770971453255,-151.0,0.00036986,31]
[405304094,1770971453264,-151.0,0.00036986,31]
[405304095,1770971453274,-151.0,0.00036986,31]
[405304096,1770971453283,-151.0,0.00036986,31]
[405304097,1770971453297,-210.968183,0.00036986,31]
[405304098,1770971453307,-151.0,0.00036986,31]
[405304099,1770971453317,-151.0,0.00036986,31]
[405304100,1770971453326,-151.0,0.00036986,31]
[405304101,1770971453338,-151.0,0.00036986,31]
[405304102,1770971453347,-215.43284,0.00036986,31]
[405304103,1770971453356,-1536.992956,0.00036986,31]
[405304104,1770971453366,-1536.992956,0.00036986,31]
[405304105,1770971453378,-1536.992956,0.00036986,31]
[405304106,1770971453387,-1536.992956,0.00036986,31]
[405304107,1770971453397,-1536.992956,0.00036986,31]
[405304108,1770971453406,-1536.992956,0.00036986,31]
[405304109,1770971453416,-1536.992956,0.00036986,31]
[405304110,1770971453426,-1536.992956,0.00036986,31]
[405304111,1770971453435,-1536.992956,0.00036986,31]
[405304112,1770971453444,-1536.992956,0.00036986,31]
[405304113,1770971453455,-1536.992956,0.00036986,31]
[405304114,1770971453464,-1536.992956,0.00036986,31]
[405304115,1770971453473,-777.891807,0.00036986,31]
[405304116,1770971453483,-777.891807,0.00036986,31]
[405304117,1770971453492,-777.891807,0.00036986,31]
[405304118,1770971453501,-151.0,0.00036986,31]
[405304119,1770971453511,-151.0,0.00036986,31]
[405304120,1770971453521,-167.071536,0.00036986,31]
[405304121,1770971453530,-777.891807,0.00036986,31]
[405304122,1770971453539,-777.891807,0.00036986,31]
[405304123,1770971453549,-777.891807,0.00036986,31]
[405304124,1770971453561,-777.891807,0.00036986,31]
[405304125,1770971453571,-777.891807,0.00036986,31]
[405304126,1770971453581,-777.891807,0.00036986,31]
[405304127,1770971453592,-777.891807,0.00036986,31]
[405304128,1770971453603,-777.891807,0.00036986,31]
[405304129,1770971453614,-777.891807,0.00036986,31]
[405304130,1770971453625,-151.0,0.00036986,31]
[405304131,1770971453635,-201.089528,0.00036986,31]
[405304132,1770971453645,-158.698908,0.00036986,31]
[405304133,1770971453655,-151.0,0.00036986,31]
[405304134,1770971453665,-151.0,0.00036986,31]
[405304135,1770971453676,-151.0,0.00036986,31]
[405304136,1770971453686,-151.0,0.00036986,31]
[405304137,1770971453696,-151.0,0.00036986,31]
[405304138,1770971453706,-295.841741,0.00036986,31]
[405304139,1770971453716,-274.24725,0.00036986,31]
[405304140,1770971453726,-151.0,0.00036986,31]
[405304141,1770971453736,-151.0,0.00036986,31]
[405304142,1770971453746,-159.726786,0.00036986,31]
[405304143,1770971453756,-189.91211,0.00036986,31]
[405304144,1770971453766,-189.91211,0.00036986,31]
[405304145,1770971453776,-189.91211,0.00036986,31]
[405304146,1770971453786,-189.91211,0.00036986,31]
[405304147,1770971453835,-189.91211,0.00036986,31]
[405304148,1770971453845,-189.91211,0.00036986,31]
[405304149,1770971453855,-189.91211,0.00036986,31]
[405304150,1770971453864,-189.91211,0.00036986,31]
[405304151,1770971453873,-189.91211,0.00036986,31]
[405304152,1770971453883,-189.91211,0.00036986,31]
[405304153,1770971453893,-189.91211,0.00036986,31]
[405304154,1770971453903,-189.91211,0.00036986,31]
[405304155,1770971453912,-1028.662613,0.00036986,31]
[405304156,1770971453921,-1028.662613,0.00036986,31]
[405304157,1770971453930,-1028.662613,0.00036986,31]
[405304158,1770971453940,-161.324312,0.00036986,31]
[405304159,1770971453949,-161.324312,0.00036986,31]
[405304160,1770971453960,-161.324312,0.00036986,31]
[405304161,1770971453969,-1028.662613,0.00036986,31]
[405304162,1770971453978,-1028.662613,0.00036986,31]
[405304163,1770971453988,-1028.662613,0.00036986,31]
[405304164,1770971453998,-161.324312,0.00036986,31]
[405304165,1770971454007,-161.324312,0.00036986,31]
[405304166,1770971454016,-161.324312,0.00036986,31]
[405304167,1770971454026,-1028.662613,0.00036986,31]
[405304168,1770971454035,-1028.662613,0.00036986,31]
[405304169,1770971454045,-151.0,0.00036986,31]
[405304170,1770971454055,-1028.662613,0.00036986,31]
[405304171,1770971454069,-161.324312,0.00036986,31]
[405304172,1770971454079,-151.0,0.00036986,31]
[405304173,1770971454088,-161.324312,0.00036986,31]
[405304174,1770971454098,-151.0,0.00036986,31]
[405304175,1770971454108,-161.324312,0.00036986,31]
[405304176,1770971454118,-1028.662613,0.00036986,31]
[405304177,1770971454128,-1028.662613,0.00036986,31]
[405304178,1770971454138,-1028.662613,0.00036986,31]
[405304179,1770971454149,-161.324312,0.00036986,31]
[405304180,1770971454158,-161.324312,0.00036986,31]
[405304181,1770971454168,-161.324312,0.00036986,31]
[405304182,1770971454177,-714.400562,0.00036986,31]
[405304183,1770971454187,-714.400562,0.00036986,31]
[405304184,1770971454196,-714.400562,0.00036986,31]
[405304185,1770971454205,-151.0,0.00036986,7]
[405304186,1770971454214,-151.0,0.00036986,7]
[405304187,1770971454224,-151.0,0.00036986,7]
[405304188,1770971454233,-151.0,0.00036986,31]
[405304189,1770971454242,-714.400562,0.00036986,31]
[405304190,1770971454251,-151.0,0.00036986,31]
[405304191,1770971454261,-714.400562,0.00036986,31]
[405304192,1770971454270,-157.558412,0.00036986,31]
[405304193,1770971454280,-151.0,0.00036986,31]
[405304194,1770971454293,-714.400562,0.00036986,31]
[405304195,1770971454302,-151.0,0.00036986,7]
[405304196,1770971454315,-155.649527,0.00036986,31]
[405304197,1770971454324,-151.0,0.00036986,7]
[405304198,1770971454334,-243.320913,0.00036986,7]
[405304199,1770971454344,-714.400562,0.00036986,31]
[405304200,1770971454353,-714.400562,0.00036986,31]
[405304201,1770971454363,-714.400562,0.00036986,31]
[405304202,1770971454372,-714.400562,0.00036986,31]
[405304203,1770971454382,-151.0,0.00036986,31]
[405304204,1770971454391,-714.400562,0.00036986,31]
[405304205,1770971454400,-151.0,0.00036986,31]
[405304206,1770971454409,-714.400562,0.00036986,31]
[405304207,1770971454418,-158.384846,0.00036986,31]
[405304208,1770971454428,-151.0,0.00036986,31]
[405304209,1770971454437,-151.0,0.00036986,31]
[405304210,1770971454446,-151.0,0.00036986,31]
[405304211,1770971454456,-639.29,0.000372,14]
[405304212,1770971454465,-188.38143115,0.000372,120]
[405304213,1770971454474,-188.38143114,0.000372,120]
[405304214,1770971454484,-300.131629,0.00037368,84]
[405304215,1770971454493,-152.0,0.00037462,14]
[405304216,1770971454502,-1048.59,0.000375,14]
[405304217,1770971454515,-1456.5303,0.000376,120]
[405304218,1770971454525,-503.0,0.00037769,19]
[405304219,1770971454534,-722.32,0.00037899,120]
[405304220,1770971454543,-1137.19,0.00037899,120]
[405304221,1770971454553,-981.7,0.00037899,30]
[405304222,1770971454566,-500.0,0.00037899,120]
[405304223,1770971454575,-500.0,0.00037899,30]
[405304224,1770971454584,-691.13,0.00037899,30]
[405304225,1770971454594,-529.45,0.00037899,120]
[405304226,1770971454603,-1438.79,0.00037899,120]
[405304227,1770971454613,-500.0,0.00037899,18]
[405304228,1770971454622,-581.0,0.00037899,120]
[405304229,1770971454632,-866.73,0.00037899,120]
[405304230,1770971454641,-500.0,0.00037899,30]
[405304231,1770971454652,-274.57438426,0.00038,30]
[405304232,1770971454662,-152.0,0.00038085,15]
[405304233,1770971454671,-1070.01,0.000381,2]
[405304234,1770971454681,-1572.86,0.000381,14]
[405304235,1770971454691,-150.0,0.00038252,2]
[405304236,1770971454700,-1999.0,0.00038356,120]
[405304237,1770971454709,-518.48802897,0.00038356,120]
[405304238,1770971454719,-918.0,0.00038494,2]
[405304239,1770971454729,-1337.0,0.00038494,2]
[405304240,1770971454739,-1142.63739989,0.00038679,120]
[405304241,1770971454748,-500.0,0.000387,120]
[405304242,1770971454757,-152.0,0.00038709,16]
[405304243,1770971454767,-2517.321,0.000389,120]
[405304244,1770971454776,-2517.321,0.000389,120]
[405304245,1770971454785,-2517.32,0.000389,120]
[405304246,1770971454795,-150.74811196,0.00039,90]
[405304247,1770971454804,-3273.44286965,0.00039,120]
[405304248,1770971454816,-41943.48,0.00039,2]
[405304249,1770971454826,-1999.0,0.00039178,120]
[405304250,1770971454835,-639.29,0.000392,14]
[405304251,1770971454845,-152.0,0.00039332,17]
[405304252,1770971454855,-840577.74272624,0.000394,7]
[405304253,1770971454864,-151.0,0.000394,120]
[405304254,1770971454874,-1064.550733,0.000394,120]
[405304255,1770971454883,-151.0,0.000394,120]
[405304256,1770971454892,-1064.550733,0.000394,120]
[405304257,1770971454901,-432.808993,0.000394,120]
[405304258,1770971454911,-1064.550733,0.000394,120]
[405304259,1770971454920,-432.808993,0.000394,120]
[405304260,1770971454929,-1064.550733,0.000394,120]
[405304261,1770971454939,-432.808993,0.000394,120]
[405304262,1770971454948,-432.808993,0.000394,120]
[405304263,1770971454957,-151.0,0.000394,120]
[405304264,1770971454967,-264.185097,0.000394,120]
[405304265,1770971454976,-151.0,0.000394,120]
[405304266,1770971454986,-151.0,0.000394,120]
[405304267,1770971454995,-1536.992956,0.000394,120]
[405304268,1770971455005,-1536.992956,0.000394,120]
[405304269,1770971455014,-1536.992956,0.000394,120]
[405304270,1770971455023,-1536.992956,0.000394,120]
[405304271,1770971455033,-777.891807,0.000394,120]
[405304272,1770971455043,-777.891807,0.000394,120]
[405304273,1770971455052,-777.891807,0.000394,120]
[405304274,1770971455063,-777.891807,0.000394,120]
[405304275,1770971455073,-364.466906,0.000394,120]
[405304276,1770971455082,-364.466906,0.000394,120]
[405304277,1770971455091,-364.466906,0.000394,120]
[405304278,1770971455100,-364.466906,0.000394,120]
[405304279,1770971455110,-151.0,0.000394,120]
[405304280,1770971455119,-151.0,0.000394,120]
[405304281,1770971455129,-189.91211,0.000394,120]
[405304282,1770971455138,-189.91211,0.000394,120]
[405304283,1770971455147,-189.91211,0.000394,120]
[405304284,1770971455157,-189.91211,0.000394,120]
[405304285,1770971455167,-1028.662613,0.000394,120]
[405304286,1770971455177,-161.324312,0.000394,120]
[405304287,1770971455187,-1028.662613,0.000394,120]
[405304288,1770971455196,-161.324312,0.000394,120]
[405304289,1770971455206,-1028.662613,0.000394,120]
[405304290,1770971455215,-151.0,0.000394,120]
[405304291,1770971455225,-161.324312,0.000394,120]
[405304292,1770971455235,-1028.662613,0.000394,120]
[405304293,1770971455244,-161.324312,0.000394,120]
[405304294,1770971455253,-714.400562,0.000394,120]
[405304295,1770971455264,-151.0,0.000394,7]
[405304296,1770971455274,-714.400562,0.000394,120]
[405304297,1770971455284,-714.400562,0.000394,120]
[405304298,1770971455298,-714.400562,0.000394,120]
[405304299,1770971455310,-151.0,0.000394,120]
[405304300,1770971455319,-2000.0,0.000396,2]
[405304301,1770971455330,-77777.82706922,0.00039781,7]
[405304302,1770971455339,-246.73407,0.00039781,120]
[405304303,1770971455348,-151.0,0.00039781,120]
[405304304,1770971455357,-151.0,0.00039781,120]